fUST/lending_fUST_20250702
["ID","MTS","AMOUNT","RATE_DAILY","PERIOD"]
[369045754,1751443866266,-460.0,0.00019452,2]
[369045755,1751443866279,-460.0,0.00019452,2]
[369045756,1751443866291,-659.03,0.00019452,2]
[369045757,1751443866303,-709.32,0.00019452,2]
[369045758,1751443866315,-1153.43,0.00019452,2]
[369045759,1751443866326,-547.81,0.00019452,2]
[369045760,1751443866338,-1284.04,0.00019452,2]
[369045761,1751443866350,-2203.89,0.00019452,2]
[369045762,1751443866362,-340.740744,0.00019452,2]
[369045763,1751443866374,-693.55,0.00019452,2]
[369045764,1751443866387,-936.841096,0.00019452,2]
[369045765,1751443866400,-936.841105,0.00019452,2]
[369045766,1751443866412,-340.740738,0.00019452,2]
[369045767,1751443866427,-7054.28,0.00019452,2]
[369045768,1751443866439,-2135.01,0.00019452,2]
[369045769,1751443866451,-644.54,0.00019452,2]
[369045770,1751443866463,-460.0,0.00019452,2]
[369045771,1751443866475,-460.0,0.00019452,2]
[369045772,1751443866486,-678.82,0.00019452,2]
[369045773,1751443866499,-863.54,0.00019452,2]
[369045774,1751443866510,-1564.8,0.00019452,2]
[369045775,1751443866522,-652.57,0.00019452,2]
[369045776,1751443866533,-750.41,0.00019452,2]
[369045777,1751443866545,-460.0,0.00019452,2]
[369045778,1751443866556,-586.48,0.00019452,2]
[369045779,1751443866568,-4867.25,0.00019452,2]
[369045780,1751443866580,-1001.788285,0.000195,2]
[369045781,1751443866592,-151.0,0.00019514,2]
[369045782,1751443866604,-377.578523,0.00019514,2]
[369045783,1751443866616,-377.578523,0.00019514,2]
[369045784,1751443866628,-587.0,0.00019516,2]
[369045785,1751443866640,-587.0,0.00019516,2]
[369045786,1751443866652,-446.0,0.00019516,2]
[369045787,1751443866664,-1012.0,0.00019618,2]
[369045788,1751443866676,-168.0,0.00019648,2]
[369045789,1751443866688,-490.7,0.00019665,3]
[369045790,1751443866700,-2351.0,0.00019711,2]
[369045791,1751443866713,-5000.0,0.00019716,2]
[369045792,1751443866725,-262.228203,0.00019726,2]
[369045793,1751443866737,-262.228203,0.00019726,2]
[369045794,1751443866749,-585.124011,0.00019726,2]
[369045795,1751443866760,-151.62941,0.00019726,2]
[369045796,1751443866772,-151.0,0.00019726,2]
[369045797,1751443866785,-151.0,0.00019726,2]
[369045798,1751443866798,-180.061695,0.00019726,2]
[369045799,1751443866810,-239.394205,0.00019726,2]
[369045800,1751443866823,-239.394205,0.00019726,2]
[369045801,1751443866835,-273.177028,0.00019726,2]
[369045802,1751443866847,-273.177028,0.00019726,2]
[369045803,1751443866858,-182.553769,0.00019726,2]
[369045804,1751443866870,-182.553769,0.00019726,2]
[369045805,1751443866884,-460.0,0.00019726,2]
[369045806,1751443866896,-336.306551,0.00019726,2]
[369045807,1751443866908,-336.306551,0.00019726,2]
[369045808,1751443866920,-151.0,0.00019726,2]
[369045809,1751443866932,-460.0,0.00019726,2]
[369045810,1751443866945,-378.867334,0.00019726,2]
[369045811,1751443866957,-378.867334,0.00019726,2]
[369045812,1751443866969,-151.0,0.00019726,2]
[369045813,1751443866982,-239.905057,0.00019726,2]
[369045814,1751443866996,-239.905057,0.00019726,2]
[369045815,1751443867008,-151.0,0.00019726,2]
[369045816,1751443867020,-460.0,0.00019726,2]
[369045817,1751443867032,-794.32,0.00019726,2]
[369045818,1751443867045,-468.54,0.00019726,2]
[369045819,1751443867058,-460.0,0.00019726,2]
[369045820,1751443867069,-850.98,0.00019726,2]
[369045821,1751443867209,-460.0,0.00019726,2]
[369045822,1751443867262,-568.63,0.00019726,2]
[369045823,1751443867272,-460.0,0.00019726,2]
[369045824,1751443867282,-460.0,0.00019726,2]
[369045825,1751443867292,-197.422233,0.00019726,2]
[369045826,1751443867302,-460.0,0.00019726,2]
[369045827,1751443867311,-468.158223,0.00019726,2]
[369045828,1751443867320,-468.158231,0.00019726,2]
[369045829,1751443867330,-460.0,0.00019726,2]
[369045830,1751443867340,-460.0,0.00019726,2]
[369045831,1751443867349,-835.56,0.00019726,2]
[369045832,1751443867358,-151.0,0.00019726,2]
[369045833,1751443867367,-768.71,0.00019726,2]
[369045834,1751443867377,-460.0,0.00019726,2]
[369045835,1751443867386,-460.0,0.00019726,2]
[369045836,1751443867395,-535.08,0.00019726,2]
[369045837,1751443867405,-460.0,0.00019726,2]
[369045838,1751443867413,-1879.38,0.00019726,2]
[369045839,1751443867423,-1637.15,0.00019726,2]
[369045840,1751443867432,-460.0,0.00019726,2]
[369045841,1751443867441,-258.605202,0.00019726,2]
[369045842,1751443867450,-258.605196,0.00019726,2]
[369045843,1751443867459,-1010.49,0.00019726,2]
[369045844,1751443867469,-1289.25,0.00019726,2]
[369045845,1751443867479,-1075.42,0.00019726,2]
[369045846,1751443867488,-1429.84,0.00019726,2]
[369045847,1751443867498,-645.44,0.00019726,2]
[369045848,1751443867507,-1466.87342758,0.00019726,2]
[369045849,1751443867710,-1812.95657242,0.00019726,2]
[369045850,1751443867720,-845.66,0.00019726,2]
[369045851,1751443867730,-339.82612357,0.00019726,2]
[369045852,1751443867742,-120.17387643,0.00019726,2]
[369045853,1751443867752,-3040.19,0.00019726,2]
[369045854,1751443867762,-2252.37059846,0.00019726,2]
[369045855,1751443867774,-3069.96940154,0.00019726,2]
[369045856,1751443867784,-231.92973666,0.00019726,2]
[369045857,1751443867794,-532.43,0.00019726,2]
[369045858,1751443867804,-882.43,0.00019726,2]
[369045859,1751443867814,-635.2,0.00019726,2]
[369045860,1751443867824,-460.0,0.00019726,2]
[369045861,1751443867833,-600.73,0.00019726,2]
[369045862,1751443867843,-460.0,0.00019726,2]
[369045863,1751443867852,-154.70740319,0.00019726,2]
[369045864,1751443867861,-235.18,0.00019726,2]
[369045865,1751443867871,-500.1,0.00019726,2]
[369045866,1751443867881,-881.02,0.00019726,2]
[369045867,1751443867890,-623.2,0.00019726,2]
[369045868,1751443867900,-460.0,0.00019726,2]
[369045869,1751443867910,-1471.72,0.00019726,2]
[369045870,1751443867919,-934.62,0.00019726,2]
[369045871,1751443867929,-1564.84,0.00019726,2]
[369045872,1751443867938,-2631.81,0.00019726,2]
[369045873,1751443867948,-460.0,0.00019726,2]
[369045874,1751443867958,-3305.11,0.00019726,2]
[369045875,1751443867967,-2728.27,0.00019726,2]
[369045876,1751443867978,-849.36,0.00019726,2]
[369045877,1751443867990,-460.0,0.00019726,2]
[369045878,1751443868000,-460.0,0.00019726,2]
[369045879,1751443868014,-615.95,0.00019726,2]
[369045880,1751443868024,-529.42838546,0.00019726,2]
[369045881,1751443868039,-315.79161454,0.00019726,2]
[369045882,1751443868049,-594.16,0.00019726,2]
[369045883,1751443868062,-515.26,0.00019726,2]
[369045884,1751443868073,-722.43,0.00019726,2]
[369045885,1751443868083,-460.0,0.00019726,2]
[369045886,1751443868093,-460.0,0.00019726,2]
[369045887,1751443868103,-659.03,0.00019726,2]
[369045888,1751443868113,-709.32,0.00019726,2]
[369045889,1751443868122,-1153.43,0.00019726,2]
[369045890,1751443868132,-547.81,0.00019726,2]
[369045891,1751443868142,-1284.04,0.00019726,2]
[369045892,1751443868151,-2203.89,0.00019726,2]
[369045893,1751443868162,-693.55,0.00019726,2]
[369045894,1751443868172,-7054.28,0.00019726,2]
[369045895,1751443868182,-2135.01,0.00019726,2]
[369045896,1751443868192,-644.54,0.00019726,2]
[369045897,1751443868202,-460.0,0.00019726,2]
[369045898,1751443868212,-460.0,0.00019726,2]
[369045899,1751443868222,-678.82,0.00019726,2]
[369045900,1751443868231,-863.54,0.00019726,2]
[369045901,1751443868241,-698.04941,0.00019726,2]
[369045902,1751443868250,-1564.8,0.00019726,2]
[369045903,1751443868260,-88.36819533,0.00019726,2]
[369045904,1751443868273,-609.68120467,0.00019726,2]
[369045905,1751443868284,-652.57,0.00019726,2]
[369045906,1751443868294,-750.41,0.00019726,2]
[369045907,1751443868304,-477.84553395,0.00019726,2]
[369045908,1751443868313,-586.48,0.00019726,2]
[369045909,1751443868323,-2066.32358995,0.00019726,2]
[369045910,1751443868461,-460.0,0.00016438,2]
[369045911,1751443868471,-921.43,0.00017534,2]
[369045912,1751443868481,-921.43,0.00017808,2]
[369045913,1751443868490,-921.43,0.00018082,2]
[369045914,1751443868499,-921.43,0.00018356,2]
[369045915,1751443868509,-921.43,0.0001863,2]
[369045916,1751443868519,-921.43,0.00018904,2]
[369045917,1751443868528,-223.0315306,0.00019166,2]
[369045918,1751443868538,-921.43,0.00019178,2]
[369045919,1751443868548,-2800.92641005,0.00019726,2]
[369045920,1751443868558,-1000.0,0.0001976,2]
[369045921,1751443868567,-4426.0,0.00019936,2]
[369045922,1751443868577,-21737.73827952,0.00019998,2]
[369045923,1751443868589,-1867.85172048,0.00019998,2]
[369045924,1751443868599,-465.451048,0.00019998,2]
[369045925,1751443868608,-465.451056,0.00019998,2]
[369045926,1751443868617,-151.0,0.00019998,2]
[369045927,1751443868627,-490.476994,0.00019998,2]
[369045928,1751443868638,-490.476994,0.00019998,2]
[369045929,1751443868648,-213.002438,0.00019998,2]
[369045930,1751443868657,-213.002434,0.00019998,2]
[369045931,1751443868666,-1579.607331,0.00019998,2]
[369045932,1751443868676,-1579.607329,0.00019998,2]
[369045933,1751443868686,-151.0,0.00019998,2]
[369045934,1751443868695,-151.0,0.00019998,2]
[369045935,1751443868704,-2837.17843615,0.0002,2]
[369045936,1751443868716,-4059.1691956,0.0002,2]
[369045937,1751443868728,-870.6123134,0.0002,2]
[369045938,1751443868739,-4346.82859954,0.0002,2]
[369045939,1751443868911,-873.86251564,0.00019452,2]
[369045940,1751443868922,-47.56748436,0.00019452,2]
[369045941,1751443868932,-921.43,0.00019726,2]
[369045942,1751443868941,-1016.00251563,0.0002,2]
[369045943,1751443868953,-399.9479,0.0002,2]
[369045944,1751443868977,-460.0,0.00016438,2]
[369045945,1751443868990,-68.90102382,0.0002,2]
[369045946,1751443869098,-2924.3797251,0.0002,2]
[369045947,1751443890821,200.0,0.00025096,120]
[369045949,1751443907190,398.857636,0.00027397,120]
[369045950,1751443921990,10000.0,0.00016008,2]
[369045951,1751443926211,492.063888,0.00013699,2]
[369045953,1751443950797,200.0,0.00024004,120]
[369045954,1751444010839,200.0,0.0002583,120]
[369045955,1751444070797,200.0,0.00026566,120]
[369045956,1751444093722,-169.15060609,0.00016228,2]
[369045957,1751444093745,-49.13679194,0.00016283,2]
[369045958,1751444096672,-120.01381415,0.00016283,2]
[369045959,1751444096697,-55.30918331,0.00016328,3]
[369045960,1751444098265,-277.66824918,0.00016328,3]
[369045961,1751444103787,671.27864467,0.000171,6]
[369045962,1751444130782,200.0,0.00024054,120]
[369045963,1751444190785,200.0,0.00024536,120]
[369045964,1751444250707,200.0,0.00026469,120]
[369045965,1751444310780,200.0,0.00024633,120]
[369045966,1751444351921,-325.18256751,0.00016328,3]
[369045967,1751444351950,-329.08,0.00016328,3]
[369045968,1751444351980,-164.54,0.00016328,3]
[369045969,1751444352009,-368.75486498,0.00016328,3]
[369045970,1751444352078,-124.88513502,0.00016328,3]
[369045971,1751444352111,-181.0,0.00016328,2]
[369045972,1751444352141,-711.8121037,0.00016328,2]
[369045973,1751444352203,-714.3757926,0.00016336,2]
[369045974,1751444352235,-485.6242074,0.00016336,2]
[369045975,1751444352264,-300.0,0.00016336,2]
[369045976,1751444352292,-300.0,0.00016337,2]
[369045977,1751444352321,-28.7515852,0.00016337,2]
[369045978,1751444352387,-271.2484148,0.00016337,2]
[369045979,1751444352419,-1200.0,0.00016337,2]
[369045980,1751444352462,-100.0,0.00016337,2]
[369045981,1751444352495,-407.24465343,0.00016337,2]
[369045982,1751444352526,-154.16428072,0.00016337,2]
[369045983,1751444352573,-1377.1821317,0.00016338,2]
[369045984,1751444352605,-371.0217654,0.00016338,2]
[369045985,1751444352640,-1757.9564692,0.00016338,2]
[369045986,1751444352735,-2500.0,0.00016338,2]
[369045987,1751444352895,-2500.0,0.00016338,2]
[369045988,1751444352998,-2500.0,0.00016338,2]
[369045989,1751444353128,-2500.0,0.00016338,2]
[369045990,1751444353263,-2500.0,0.00016338,2]
[369045991,1751444353352,-2500.0,0.00016338,2]
[369045992,1751444353477,-2500.0,0.00016338,2]
[369045993,1751444353574,-2500.0,0.00016338,2]
[369045994,1751444353667,-2500.0,0.00016338,2]
[369045995,1751444353765,-2500.0,0.00016338,2]
[369045996,1751444353882,-2500.0,0.00016338,2]
[369045997,1751444353996,-2500.0,0.00016338,2]
[369045998,1751444354110,-2500.0,0.00016338,2]
[369045999,1751444354218,-2500.0,0.00016338,2]
[369046000,1751444354316,-2500.0,0.00016338,2]
[369046001,1751444354415,-2500.0,0.00016338,2]
[369046002,1751444354519,-2500.0,0.00016338,2]
[369046003,1751444354611,-2500.0,0.00016338,2]
[369046004,1751444354705,-2500.0,0.00016338,2]
[369046005,1751444354821,-2500.0,0.00016338,2]
[369046006,1751444354936,-2500.0,0.00016338,2]
[369046007,1751444355042,-2500.0,0.00016338,2]
[369046008,1751444355164,-2500.0,0.00016338,2]
[369046009,1751444355266,-2500.0,0.00016338,2]
[369046010,1751444355384,-2500.0,0.00016338,2]
[369046011,1751444355497,-2500.0,0.00016338,2]
[369046012,1751444355623,-2500.0,0.00016338,2]
[369046013,1751444355752,-2500.0,0.00016338,2]
[369046014,1751444355854,-2500.0,0.00016338,2]
[369046015,1751444355956,-2500.0,0.00016338,2]
[369046016,1751444356084,-2500.0,0.00016338,2]
[369046017,1751444356359,-2500.0,0.00016338,2]
[369046018,1751444356395,-2500.0,0.00016338,2]
[369046019,1751444356414,-2500.0,0.00016338,2]
[369046020,1751444370721,200.0,0.00025738,120]
[369046021,1751444379824,24900.0,0.00015487,2]
[369046022,1751444416336,5000.0,0.000161,2]
[369046023,1751444431219,200.0,0.00024091,120]
[369046024,1751444431923,5000.0,0.000161,2]
[369046025,1751444448324,5000.0,0.000161,2]
[369046026,1751444464167,4181.35884514,0.000161,2]
[369046027,1751444468374,-169.15060609,0.00016237,2]
[369046028,1751444468405,-1874.48182609,0.00016281,2]
[369046029,1751444468426,-169.15060609,0.00016336,2]
[369046030,1751444468456,-1030.84939391,0.00016336,2]
[369046031,1751444468467,-300.0,0.00016337,2]
[369046032,1751444468477,-300.0,0.00016337,2]
[369046033,1751444468486,-243.63243218,0.00016337,2]
[369046034,1751444468499,-56.36756782,0.00016337,2]
[369046035,1751444468509,-856.36756782,0.00016337,2]
[369046036,1751444468544,-343.63243218,0.00016337,2]
[369046037,1751444468575,-297.69279718,0.00016337,2]
[369046038,1751444468596,-343.63243218,0.00016338,2]
[369046039,1751444468607,-297.69279718,0.00016338,2]
[369046040,1751444468619,-3717.34954128,0.00016338,2]
[369046041,1751444468657,-5000.0,0.00016338,2]
[369046042,1751444468744,-5000.0,0.00016338,2]
[369046043,1751444468877,-5000.0,0.00016338,2]
[369046044,1751444469201,-5000.0,0.00016338,2]
[369046045,1751444469315,-5000.0,0.00016338,2]
[369046046,1751444469704,-5000.0,0.00016338,2]
[369046047,1751444469862,-5000.0,0.00016338,2]
[369046048,1751444470177,-5000.0,0.00016338,2]
[369046049,1751444470192,-5000.0,0.00016338,2]
[369046050,1751444470269,-5000.0,0.00016338,2]
[369046051,1751444470395,-5000.0,0.00016338,2]
[369046052,1751444470501,-5000.0,0.00016338,2]
[369046053,1751444470607,-5000.0,0.00016338,2]
[369046054,1751444470717,-5000.0,0.00016338,2]
[369046055,1751444470837,-5000.0,0.00016338,2]
[369046056,1751444470967,-5000.0,0.00016338,2]
[369046057,1751444471147,-5000.0,0.00016338,2]
[369046058,1751444471267,-5000.0,0.00016338,2]
[369046059,1751444471387,-5000.0,0.00016338,2]
[369046060,1751444471490,-5000.0,0.00016338,2]
[369046061,1751444471599,-5000.0,0.00016338,2]
[369046062,1751444471722,-5000.0,0.00016338,2]
[369046063,1751444471840,-5000.0,0.00016338,2]
[369046064,1751444471963,-5000.0,0.00016338,2]
[369046065,1751444472414,-5000.0,0.00016338,2]
[369046066,1751444472791,-5000.0,0.00016338,2]
[369046067,1751444472920,-5000.0,0.00016338,2]
[369046068,1751444473117,-5000.0,0.00016338,2]
[369046069,1751444473231,-5000.0,0.00016338,2]
[369046070,1751444473382,-5000.0,0.00016338,2]
[369046071,1751444473677,-5000.0,0.00016338,2]
[369046072,1751444473778,-5000.0,0.00016338,2]
[369046073,1751444473887,-5000.0,0.00016338,2]
[369046074,1751444474366,-5000.0,0.00016338,2]
[369046075,1751444474473,-5000.0,0.00016338,2]
[369046076,1751444474578,-5000.0,0.00016338,2]
[369046077,1751444474700,-5000.0,0.00016338,2]
[369046078,1751444474797,-5000.0,0.00016338,2]
[369046079,1751444476913,224.3287808,0.00015699,2]
[369046080,1751444490745,200.0,0.00026029,120]
[369046081,1751444507986,8056.7876935,0.00015575,2]
[369046082,1751444529718,5000.0,0.000161,2]
[369046083,1751444544741,5000.0,0.000161,2]
[369046084,1751444550509,200.0,0.00024457,120]
[369046085,1751444561266,1592.40570354,0.000161,2]
[369046089,1751444610737,200.0,0.00026191,120]
[369046091,1751444646677,791.794839,0.00015435,2]
[369046093,1751444671297,200.0,0.0002589,120]
[369046094,1751444685334,222.77145125,0.00015848,2]
[369046096,1751444710102,2741.04737309,0.000161,2]
[369046097,1751444731250,200.0,0.00024097,120]
[369046123,1751444775214,-152.58932322,0.00016237,2]
[369046124,1751444790728,200.0,0.00025876,120]
[369046125,1751444828113,-51.04195591,0.00016237,2]
[369046126,1751444828134,-300.0,0.00016336,2]
[369046127,1751444828155,-300.0,0.00016337,2]
[369046128,1751444828175,-300.0,0.00016337,2]
[369046129,1751444828196,-1200.0,0.00016337,2]
[369046130,1751444828217,-292.0,0.00016337,2]
[369046131,1751444828237,-203.99540914,0.00016338,2]
[369046132,1751444841126,-1295.59005174,0.00016338,2]
[369046133,1751444841148,-8181.91474049,0.00016338,2]
[369046134,1751444846135,-18311.90946425,0.00016338,2]
[369046135,1751444850762,200.0,0.00025861,120]
[369046136,1751444884921,299.143227,0.00027397,120]
[369046140,1751444910727,200.0,0.00025171,120]
[369046141,1751444971752,200.0,0.00026192,120]
[369046142,1751445030480,200.0,0.00024071,120]
[369046158,1751445036233,-422.29138918,0.00016281,2]
[369046161,1751445036289,-200.54420161,0.00016281,2]
[369046162,1751445036299,-266.0,0.00016336,2]
[369046163,1751445036308,-300.0,0.00016336,2]
[369046164,1751445036317,-1200.0,0.00016336,2]
[369046165,1751445036327,-300.0,0.00016336,2]
[369046166,1751445036336,-4228.41271413,0.00016337,2]
[369046173,1751445037815,-294.11526278,0.00016337,2]
[369046174,1751445037834,-5212.08522555,0.00016337,2]
[369046175,1751445037850,-500.0,0.00016337,2]
[369046176,1751445037861,-500.0,0.00016337,2]
[369046177,1751445037871,-500.0,0.00016337,2]
[369046178,1751445037882,-500.0,0.00016337,2]
[369046179,1751445037892,-500.0,0.00016337,2]
[369046180,1751445037902,-269.59364945,0.00016337,2]
[369046181,1751445037911,-500.0,0.00016337,2]
[369046182,1751445037922,-500.0,0.00016337,2]
[369046183,1751445037933,-500.0,0.00016337,2]
[369046184,1751445037943,-207.08648688,0.00016337,2]
[369046185,1751445037954,-269.92168324,0.00016337,2]
[369046187,1751445037971,-230.07831676,0.00016337,2]
[369046188,1751445037980,-500.0,0.00016337,2]
[369046189,1751445037990,-500.0,0.00016337,2]
[369046190,1751445038000,-365.38665058,0.00016337,2]
[369046191,1751445038010,-247.88674165,0.00016337,2]
[369046192,1751445038020,-160.0,0.00016338,2]
[369046193,1751445038029,-4172.5406552,0.00016338,2]
[369046194,1751445038041,-45142.43183374,0.00016338,2]
[369046195,1751445038053,-13074.57206648,0.00016338,2]
[369046196,1751445038062,-1568.277672,0.00016381,2]
[369046197,1751445038072,-294.41,0.00016428,3]
[369046198,1751445038083,-883.24,0.00016428,3]
[369046199,1751445038093,-690.642,0.00016428,2]
[369046200,1751445038103,-207.4,0.00016428,2]
[369046201,1751445038112,-1500.0,0.00016428,2]
[369046202,1751445038122,-1500.0,0.00016428,2]
[369046203,1751445038131,-1500.0,0.00016428,2]
[369046204,1751445038141,-1500.0,0.00016428,2]
[369046205,1751445038150,-1500.0,0.00016428,2]
[369046206,1751445038159,-5000.0,0.00016428,2]
[369046207,1751445038169,-1500.0,0.00016428,2]
[369046208,1751445038178,-722.74822995,0.00016428,2]
[369046209,1751445038188,-500.0,0.00016437,2]
[369046210,1751445038197,-492.48293501,0.00016437,2]
[369046211,1751445038207,-201.55708773,0.00016437,2]
[369046212,1751445038217,-200.11639735,0.00016437,2]
[369046213,1751445038227,-460.0,0.00016438,2]
[369046214,1751445038236,-460.0,0.00016438,2]
[369046215,1751445038245,-460.0,0.00016438,2]
[369046216,1751445038254,-527.32021887,0.00016438,2]
[369046217,1751445038264,-460.0,0.00016438,2]
[369046218,1751445038275,-460.0,0.00016438,2]
[369046219,1751445038285,-460.0,0.00016438,2]
[369046220,1751445038295,-460.0,0.00016438,2]
[369046221,1751445038305,-460.0,0.00016438,2]
[369046222,1751445038314,-460.0,0.00016438,2]
[369046223,1751445038323,-460.0,0.00016438,2]
[369046224,1751445038334,-460.0,0.00016438,2]
[369046225,1751445038344,-460.0,0.00016438,2]
[369046226,1751445038352,-460.0,0.00016438,2]
[369046227,1751445038363,-460.0,0.00016438,2]
[369046228,1751445038373,-460.0,0.00016438,2]
[369046229,1751445038383,-406.38940451,0.00016438,2]
[369046230,1751445038392,-460.0,0.00016438,2]
[369046231,1751445038402,-460.0,0.00016438,2]
[369046232,1751445038411,-477.40529787,0.00016438,2]
[369046233,1751445038421,-460.0,0.00016438,2]
[369046234,1751445038430,-460.0,0.00016438,2]
[369046235,1751445038440,-460.0,0.00016438,2]
[369046236,1751445038450,-460.0,0.00016438,2]
[369046237,1751445038460,-460.0,0.00016438,2]
[369046238,1751445038469,-460.0,0.00016438,2]
[369046239,1751445038479,-460.0,0.00016438,2]
[369046240,1751445038491,-460.0,0.00016438,2]
[369046241,1751445038500,-297.32092264,0.00016438,2]
[369046242,1751445038510,-460.0,0.00016438,2]
[369046243,1751445038520,-460.0,0.00016438,2]
[369046244,1751445038529,-344.16786032,0.00016438,2]
[369046245,1751445038538,-460.0,0.00016438,2]
[369046246,1751445038548,-460.0,0.00016438,2]
[369046247,1751445038557,-460.0,0.00016438,2]
[369046248,1751445038567,-460.0,0.00016438,2]
[369046249,1751445038577,-498.25,0.00016438,2]
[369046250,1751445038587,-462.27514994,0.00016438,2]
[369046251,1751445038597,-460.0,0.00016438,2]
[369046252,1751445038607,-460.0,0.00016438,2]
[369046253,1751445038616,-460.0,0.00016438,2]
[369046254,1751445038625,-460.0,0.00016438,2]
[369046255,1751445038634,-460.0,0.00016438,2]
[369046256,1751445038644,-604.02035275,0.00016438,2]
[369046257,1751445038654,-460.0,0.00016438,2]
[369046258,1751445038663,-460.0,0.00016438,2]
[369046259,1751445038672,-460.0,0.00016438,2]
[369046260,1751445038683,-441.22791932,0.00016438,2]
[369046261,1751445038693,-460.0,0.00016438,2]
[369046262,1751445038702,-426.66825691,0.00016438,2]
[369046263,1751445038712,-460.0,0.00016438,2]
[369046264,1751445038722,-460.0,0.00016438,2]
[369046265,1751445038733,-460.0,0.00016438,2]
[369046266,1751445038742,-460.0,0.00016438,2]
[369046267,1751445038752,-460.0,0.00016438,2]
[369046268,1751445038762,-460.0,0.00016438,2]
[369046269,1751445038772,-460.0,0.00016438,2]
[369046270,1751445038782,-460.0,0.00016438,2]
[369046271,1751445038793,-390.86821487,0.00016438,2]
[369046272,1751445038803,-460.0,0.00016438,2]
[369046273,1751445038813,-460.0,0.00016438,2]
[369046274,1751445038822,-460.0,0.00016438,2]
[369046275,1751445038834,-460.0,0.00016438,2]
[369046276,1751445038844,-460.0,0.00016438,2]
[369046277,1751445038854,-460.0,0.00016438,2]
[369046278,1751445038864,-460.0,0.00016438,2]
[369046279,1751445038873,-461.88657365,0.00016438,2]
[369046280,1751445038883,-460.0,0.00016438,2]
[369046281,1751445038893,-442.02462515,0.00016438,2]
[369046282,1751445038902,-460.0,0.00016438,2]
[369046283,1751445038912,-460.0,0.00016438,2]
[369046284,1751445038921,-460.0,0.00016438,2]
[369046285,1751445038931,-462.82313929,0.00016438,2]
[369046286,1751445038941,-460.0,0.00016438,2]
[369046287,1751445038950,-460.0,0.00016438,2]
[369046288,1751445038960,-460.0,0.00016438,2]
[369046289,1751445038970,-508.13518561,0.00016438,2]
[369046290,1751445038981,-460.0,0.00016438,2]
[369046291,1751445038991,-567.99873744,0.00016438,2]
[369046292,1751445039001,-460.0,0.00016438,2]
[369046293,1751445039010,-460.0,0.00016438,2]
[369046294,1751445039020,-460.0,0.00016438,2]
[369046295,1751445039029,-460.0,0.00016438,2]
[369046296,1751445039039,-460.0,0.00016438,2]
[369046297,1751445039049,-460.0,0.00016438,2]
[369046298,1751445039058,-460.0,0.00016438,2]
[369046299,1751445039068,-256.11454035,0.00016438,2]
[369046300,1751445039079,-460.0,0.00016438,2]
[369046301,1751445039089,-460.0,0.00016438,2]
[369046302,1751445039099,-460.0,0.00016438,2]
[369046303,1751445039108,-460.0,0.00016438,2]
[369046304,1751445039118,-460.0,0.00016438,2]
[369046305,1751445039127,-460.0,0.00016438,2]
[369046306,1751445039137,-460.0,0.00016438,2]
[369046307,1751445039147,-639.06,0.00016438,2]
[369046308,1751445039157,-500.0,0.00016438,2]
[369046309,1751445039167,-500.0,0.00016438,2]
[369046310,1751445039176,-500.0,0.00016438,2]
[369046311,1751445039186,-500.0,0.00016438,2]
[369046312,1751445039196,-500.0,0.00016438,2]
[369046313,1751445039206,-460.0,0.00016438,2]